bitfinex/quotes_BTCUSD_20230118
["timestamp","ask_amount","ask_price","bid_price","bid_amount"]
[1674047707703,0.334777,21289.0,21286.0,0.537959]
[1674047707973,0.331608,21288.0,21286.0,0.537959]
[1674047708229,0.34231556,21289.0,21286.0,0.537959]
[1674047708484,0.6983043,21290.0,21286.0,0.156959]
[1674047708749,0.306621,21289.0,21286.0,0.237959]
[1674047709215,0.321595,21288.0,21286.0,0.237959]
[1674047709224,0.001,21289.0,21286.0,0.237959]
[1674047709477,0.329157,21288.0,21286.0,0.237959]
[1674047709733,0.309437,21287.0,21286.0,0.237959]
[1674047709982,0.34331556,21289.0,21286.0,0.237959]
[1674047710241,0.001,21289.0,21286.0,0.237959]
[1674047711217,0.69822797,21290.0,21286.0,0.156959]
[1674047711218,0.329398,21288.0,21286.0,0.156959]
[1674047711478,0.001,21287.0,21286.0,0.237959]
[1674047712245,0.69822797,21290.0,21286.0,0.156959]
[1674047712511,0.001,21289.0,21286.0,0.237959]
[1674047712804,0.69822797,21290.0,21286.0,0.156959]
[1674047713036,0.001,21287.0,21286.0,0.537959]
[1674047713287,0.69822797,21290.0,21286.0,0.456959]
[1674047713288,0.34231556,21289.0,21286.0,0.456959]
[1674047713554,0.69922797,21290.0,21286.0,0.237959]
[1674047714145,0.332256,21289.0,21286.0,0.237959]
[1674047714407,0.315037,21288.0,21286.0,0.237959]
[1674047714662,0.34231556,21289.0,21286.0,0.156959]
[1674047714929,0.69822797,21290.0,21286.0,0.456959]
[1674047715191,0.69822797,21290.0,21286.0,0.62452903]
[1674047715450,0.328971,21289.0,21286.0,0.62452903]
[1674047715707,0.001,21289.0,21286.0,0.59351287]
[1674047715956,0.69822797,21290.0,21286.0,0.51251287]
[1674047716214,0.35691241,21290.0,21286.0,0.8169277]
[1674047716461,0.69792987,21290.0,21286.0,0.8169277]
[1674047716768,0.69692987,21290.0,21286.0,0.51251287]
[1674047716971,0.001,21289.0,21286.0,0.59351287]
[1674047717240,0.69692987,21290.0,21286.0,0.51251287]
[1674047717492,0.35691241,21290.0,21286.0,0.59351287]
[1674047719025,0.35591241,21290.0,21286.0,0.7359277]
[1674047719294,0.001,21289.0,21286.0,0.8169277]
[1674047719524,0.001,21289.0,21286.0,0.7359277]
[1674047719786,0.001,21290.0,21287.0,1.11123802]
[1674047720042,0.01093679,21292.0,21289.0,0.16757003]
[1674047720319,0.01093679,21292.0,21290.0,0.310234]
[1674047720629,0.01093679,21292.0,21290.0,0.1103]
[1674047721366,0.01093679,21292.0,21290.0,0.4103]
[1674047722455,0.02193679,21292.0,21290.0,0.1163]
[1674047723495,0.02193679,21292.0,21290.0,0.006]
[1674047726812,0.02193679,21292.0,21291.0,0.199918]
[1674047727102,0.02193679,21292.0,21290.0,0.006]
[1674047729323,0.02201312,21292.0,21290.0,0.006]
[1674047730103,0.02193679,21292.0,21290.0,0.006]
[1674047731118,0.02201312,21292.0,21290.0,0.006]
[1674047733658,0.02193679,21292.0,21290.0,0.006]
[1674047737314,0.02193679,21292.0,21290.0,0.306]
[1674047737823,0.02181796,21292.0,21290.0,0.306]
[1674047738834,0.02181796,21292.0,21290.0,0.006]
[1674047739082,0.02181796,21292.0,21290.0,0.306]
[1674047740327,0.01081796,21292.0,21290.0,0.3]
[1674047741100,0.01100001,21292.0,21291.0,0.32269749]
[1674047741354,0.01100001,21292.0,21291.0,0.58163938]
[1674047741858,0.01100001,21292.0,21291.0,0.38172138]
[1674047742376,0.01100001,21292.0,21291.0,0.08172138]
[1674047742625,1e-08,21292.0,21291.0,0.08172138]
[1674047743125,1e-08,21292.0,21290.0,0.3]
[1674047743622,1e-08,21292.0,21291.0,0.199917]
[1674047743882,0.00100001,21292.0,21291.0,0.259917]
[1674047744146,1e-08,21292.0,21291.0,0.3]
[1674047744433,1e-08,21292.0,21291.0,0.610217]
[1674047744733,0.00100001,21292.0,21291.0,0.670217]
[1674047745473,0.00100001,21292.0,21291.0,0.82887555]
[1674047745738,0.00100001,21292.0,21291.0,0.94077839]
[1674047746006,0.00100001,21292.0,21291.0,0.82887555]
[1674047746515,0.00100001,21292.0,21291.0,0.94077839]
[1674047747029,0.00100001,21292.0,21291.0,0.82887555]
[1674047748085,0.01105433,21294.0,21292.0,0.15132487]
[1674047748352,0.01105433,21294.0,21293.0,0.60152137]
[1674047748626,0.01105433,21294.0,21293.0,1.58687731]
[1674047748855,0.01105433,21294.0,21293.0,1.47515308]
[1674047749114,0.01105433,21294.0,21293.0,1.69861791]
[1674047749370,0.01105433,21294.0,21293.0,1.5868815]
[1674047749637,0.01105433,21294.0,21293.0,1.58688385]
[1674047749901,0.01105433,21294.0,21293.0,1.58935849]
[1674047750178,0.01105433,21294.0,21293.0,0.67948895]
[1674047750415,0.01105433,21294.0,21293.0,0.79121972]
[1674047750935,0.01105433,21294.0,21293.0,0.95881834]
[1674047751241,0.01105433,21294.0,21293.0,1.47997414]
[1674047751523,0.01105433,21294.0,21293.0,1.57292421]
[1674047751758,0.01105433,21294.0,21293.0,1.62879042]
[1674047752045,0.01105433,21294.0,21293.0,2.09435816]
[1674047752310,0.01105433,21294.0,21293.0,1.92693055]
[1674047752592,0.01105433,21294.0,21293.0,2.09435955]
[1674047752901,0.01105433,21294.0,21293.0,1.92693055]
[1674047753195,0.01105433,21294.0,21293.0,2.0943657]
[1674047753964,0.01105433,21294.0,21293.0,1.87090087]
[1674047754241,0.01105433,21294.0,21293.0,2.0943657]
[1674047754521,0.01105433,21294.0,21293.0,1.79622557]
[1674047754791,0.01173362,21295.0,21293.0,1.79622557]
[1674047754792,0.01173362,21295.0,21294.0,0.09241416]
[1674047755055,0.01173362,21295.0,21294.0,2.36967593]
[1674047755317,0.01173362,21295.0,21294.0,2.3037531]
[1674047755762,0.01173362,21295.0,21294.0,2.4668666]
[1674047756031,0.01173362,21295.0,21294.0,2.64286462]
[1674047756287,0.01173362,21295.0,21294.0,2.63296046]
[1674047756540,0.01173362,21295.0,21294.0,2.40998203]
[1674047756813,0.01173362,21295.0,21294.0,2.50498203]
[1674047757067,0.01173362,21295.0,21294.0,2.23216853]
[1674047757325,0.01173362,21295.0,21294.0,1.91816256]
[1674047757589,0.01173362,21295.0,21294.0,2.176642]
[1674047757834,0.01173362,21295.0,21294.0,1.91816256]
[1674047758099,0.01173362,21295.0,21294.0,2.1766294]
[1674047758581,0.01173362,21295.0,21294.0,2.39950703]
[1674047758830,0.01173362,21295.0,21294.0,2.0816294]
[1674047759098,0.01173362,21295.0,21294.0,2.1746294]
[1674047759392,0.01173362,21295.0,21294.0,9.6746294]
[1674047760151,0.01173362,21295.0,21294.0,9.89743118]
[1674047761176,0.01173362,21295.0,21294.0,2.28562665]
[1674047761441,0.01173362,21295.0,21294.0,2.11851442]
[1674047761713,0.01173362,21295.0,21294.0,9.78562686]
[1674047761982,0.01173362,21295.0,21294.0,10.60676023]
[1674047762242,0.01173362,21295.0,21294.0,10.38395845]
[1674047762493,0.01173362,21295.0,21294.0,10.60673816]
[1674047762756,0.01173362,21295.0,21294.0,2.73355132]
[1674047763011,0.01173362,21295.0,21294.0,2.57511447]
[1674047763320,0.01173362,21295.0,21294.0,10.18652232]
[1674047763583,0.01173362,21295.0,21294.0,9.52530241]
[1674047763835,0.01173362,21295.0,21294.0,9.43794022]
[1674047764123,0.01173362,21295.0,21294.0,1.13374478]
[1674047764376,0.01173362,21295.0,21294.0,1.22674478]
[1674047764636,0.01173362,21295.0,21294.0,1.22660478]
[1674047764885,0.01173362,21295.0,21294.0,1.37660478]
[1674047765868,0.01173362,21295.0,21294.0,1.11521684]
[1674047766364,0.01173362,21295.0,21294.0,1.22660478]
[1674047766626,0.01173362,21295.0,21294.0,1.11521684]
[1674047767434,0.01173362,21295.0,21294.0,1.22660478]
[1674047767705,0.01173362,21295.0,21294.0,1.11521684]
[1674047767975,0.01173362,21295.0,21294.0,1.22660478]
[1674047768233,0.0188152,21296.0,21295.0,0.01619564]
[1674047768490,0.0188152,21296.0,21295.0,0.12649564]
[1674047768747,0.0188152,21296.0,21295.0,0.42649564]
[1674047769006,0.0188152,21296.0,21295.0,0.58536564]
[1674047769276,0.0188152,21296.0,21295.0,0.12649564]
[1674047769532,0.0188152,21296.0,21295.0,0.10919564]
[1674047770616,0.0188152,21296.0,21295.0,0.40919564]
[1674047771340,1e-08,21297.0,21296.0,0.20485678]
[1674047771900,1e-08,21297.0,21295.0,0.10919564]
[1674047772144,0.43784001,21297.0,21295.0,0.10919564]
[1674047772441,0.326244,21296.0,21295.0,0.01619564]
[1674047772915,7.633e-05,21296.0,21295.0,0.01619564]
[1674047773177,0.11030001,21297.0,21295.0,0.01619564]
[1674047773433,1e-08,21297.0,21295.0,0.01619564]
[1674047773953,7.634e-05,21297.0,21295.0,0.01619564]
[1674047774741,0.43195,21296.0,21295.0,0.01619564]
[1674047775011,0.43195,21296.0,21295.0,0.10219564]
[1674047775012,0.43295,21296.0,21295.0,0.10219564]
[1674047775264,0.43195,21296.0,21295.0,0.01619564]
[1674047775541,0.43195,21296.0,21295.0,0.10219564]
[1674047775816,0.43195,21296.0,21295.0,0.01619564]
[1674047776054,0.43295,21296.0,21295.0,0.10219564]
[1674047777353,0.32315,21296.0,21295.0,0.10219564]
[1674047779403,0.001,21296.0,21295.0,0.10219564]
[1674047780140,0.001,21296.0,21295.0,0.40219564]
[1674047780450,0.001,21296.0,21295.0,0.55637446]
[1674047780987,0.00107633,21296.0,21295.0,0.25637446]
[1674047781524,0.001,21296.0,21295.0,0.25637446]
[1674047781713,0.001,21296.0,21295.0,0.55637446]
[1674047787866,0.12756962,21298.0,21295.0,0.55637446]
[1674047788141,0.12756962,21298.0,21296.0,0.3]
[1674047788913,0.12756962,21298.0,21295.0,0.17037446]
[1674047789147,0.12756962,21298.0,21295.0,0.25737446]
[1674047789394,0.12756962,21298.0,21295.0,0.17037446]
[1674047789646,0.12756962,21298.0,21296.0,0.087]
[1674047789906,0.12756962,21298.0,21295.0,0.17037446]
[1674047790121,0.12756962,21298.0,21295.0,0.25737446]
[1674047791051,0.12756962,21298.0,21295.0,0.17037446]
[1674047792135,0.12756962,21298.0,21296.0,0.087]
[1674047792394,0.12756962,21298.0,21296.0,0.3]
[1674047793190,0.12764595,21298.0,21296.0,0.387]
[1674047793434,0.01744595,21298.0,21296.0,0.087]
[1674047795338,0.01744595,21298.0,21296.0,0.04601464]
[1674047795875,0.317896,21297.0,21296.0,0.04601464]
[1674047797232,0.78738047,21297.0,21295.0,0.12800084]
[1674047797499,0.317642,21296.0,21295.0,0.12800084]
[1674047798565,0.321642,21296.0,21295.0,0.17600084]
[1674047799626,0.004,21296.0,21295.0,0.17600084]
[1674047799881,0.313192,21296.0,21295.0,0.17600084]
[1674047800137,0.004,21296.0,21295.0,0.17600084]
[1674047801484,0.004,21296.0,21295.0,0.06419564]
[1674047801949,0.004,21296.0,21295.0,0.36419564]
[1674047804188,0.004,21296.0,21295.0,0.52306564]
[1674047804944,0.004,21296.0,21295.0,0.06419564]
[1674047807360,0.004,21296.0,21295.0,0.36419564]
[1674047807619,0.004,21296.0,21295.0,0.06419564]
[1674047809378,0.00407633,21296.0,21295.0,0.06419564]
[1674047809613,0.004,21296.0,21295.0,0.06419564]
[1674047810681,0.33241933,21296.0,21295.0,0.06419564]
[1674047811200,0.332343,21296.0,21295.0,0.06419564]
[1674047811471,0.332343,21296.0,21295.0,0.10505085]
[1674047811730,0.004,21296.0,21295.0,0.60505085]
[1674047812681,0.00407633,21296.0,21295.0,0.60505085]
[1674047812918,0.004,21296.0,21295.0,0.60505085]
[1674047817919,0.004,21296.0,21295.0,0.90505085]
[1674047818170,0.004,21296.0,21295.0,0.60505085]
[1674047818874,0.004,21296.0,21295.0,0.90505085]
[1674047819384,0.004,21296.0,21295.0,0.60505085]
[1674047822882,0.004,21296.0,21295.0,0.90505085]
[1674047823397,0.1093262,21297.0,21295.0,1.71353581]
[1674047823641,0.1093262,21297.0,21295.0,1.18490465]
[1674047824175,0.1093262,21297.0,21295.0,1.13690465]
[1674047824673,0.1133262,21297.0,21295.0,1.18890465]
[1674047824924,0.11340253,21297.0,21295.0,0.88890465]
[1674047825180,0.1133262,21297.0,21295.0,0.88890465]
[1674047827033,0.11340253,21297.0,21295.0,0.88890465]
[1674047828006,0.1133262,21297.0,21295.0,0.88890465]
[1674047828253,0.1133262,21297.0,21295.0,0.72099237]
[1674047828489,0.32751633,21296.0,21295.0,0.88890465]
[1674047828739,0.32751633,21296.0,21295.0,0.72099237]
[1674047828740,0.32744,21296.0,21295.0,0.72099237]
[1674047829192,0.32744,21296.0,21295.0,1.24894523]
[1674047829417,0.32744,21296.0,21295.0,0.72099237]
[1674047829633,0.32751633,21296.0,21295.0,0.66899237]
[1674047829857,0.33151633,21296.0,21295.0,0.72099237]
[1674047830159,0.00407633,21296.0,21295.0,0.88890465]
[1674047830406,0.004,21296.0,21295.0,0.72099237]
[1674047830665,0.31721133,21296.0,21295.0,0.72099237]
[1674047831679,0.00407633,21296.0,21295.0,0.88890465]
[1674047831953,0.004,21296.0,21295.0,0.72099237]
[1674047832452,0.331092,21296.0,21295.0,0.72099237]
[1674047832924,0.33116833,21296.0,21295.0,0.72099237]
[1674047835261,0.331092,21296.0,21295.0,0.72099237]
[1674047835503,0.336064,21296.0,21295.0,0.72099237]
[1674047836020,0.33614033,21296.0,21295.0,0.72099237]
[1674047836794,0.33614033,21296.0,21295.0,0.60905085]
[1674047838845,0.55634033,21296.0,21295.0,0.60905085]
[1674047845072,0.556264,21296.0,21295.0,0.60905085]
[1674047845591,0.336064,21296.0,21295.0,1.02099237]
[1674047845848,0.336064,21296.0,21295.0,0.60905085]
[1674047846110,0.336064,21296.0,21295.0,0.72099237]
[1674047846368,0.336064,21296.0,21295.0,0.60905085]
[1674047846936,0.336064,21296.0,21295.0,0.72099237]
[1674047847457,0.336064,21296.0,21295.0,0.60905085]
[1674047848514,0.33614033,21296.0,21295.0,0.60905085]
[1674047849857,0.004,21296.0,21295.0,0.72099237]
[1674047850117,0.332804,21296.0,21295.0,0.60905085]
[1674047850629,0.33288033,21296.0,21295.0,0.60905085]
[1674047851943,1.72288371,21296.0,21295.0,0.60886153]
[1674047852209,2.58415653,21296.0,21295.0,0.60886153]
[1674047852469,1.50404291,21296.0,21295.0,0.60886153]
[1674047852751,1.3914358,21296.0,21295.0,0.60886153]
[1674047853005,1.3874358,21296.0,21295.0,0.55686153]
[1674047853223,1.09427414,21296.0,21295.0,0.56086153]
[1674047853550,1.4314358,21296.0,21295.0,0.56086153]
[1674047854336,1.3874358,21296.0,21295.0,0.55686153]
[1674047854588,1.4314358,21296.0,21295.0,0.56086153]
[1674047855652,1.09427414,21296.0,21295.0,0.56086153]
[1674047856641,0.98389781,21296.0,21295.0,0.56086153]
[1674047857914,1.32105947,21296.0,21295.0,0.56086153]
[1674047859957,0.15,21295.0,21290.0,0.11290828]
[1674047860207,0.15,21295.0,21290.0,0.00096676]
[1674047860208,0.1103,21292.0,21290.0,0.00096676]
[1674047860497,0.3213,21291.0,21290.0,0.00096676]
[1674047860784,0.35009851,21293.0,21291.0,0.32129999]
[1674047861298,0.329885,21292.0,21291.0,0.32129999]
[1674047862052,0.32996133,21292.0,21291.0,0.32129999]
[1674047862298,0.32996133,21292.0,21291.0,0.32429999]
[1674047862556,0.32996133,21292.0,21291.0,0.32129999]
[1674047862820,0.36196133,21292.0,21291.0,0.32429999]
[1674047863466,0.47216133,21292.0,21291.0,0.32429999]
[1674047864026,1.04863718,21292.0,21291.0,0.32429999]
[1674047864786,0.92146121,21292.0,21291.0,0.32429999]
[1674047867387,0.92156121,21292.0,21291.0,0.32429999]
[1674047868872,10.92156121,21292.0,21291.0,0.32429999]
[1674047869088,10.92156121,21292.0,21291.0,0.003]
[1674047870828,10.70116121,21292.0,21291.0,0.003]
[1674047871101,10.92026121,21292.0,21291.0,0.003]
[1674047872581,11.03056121,21292.0,21291.0,0.003]
[1674047872839,11.50466338,21292.0,21291.0,0.003]
[1674047873583,11.39486338,21292.0,21291.0,0.003]
[1674047874870,11.35730238,21292.0,21291.0,0.003]
[1674047875130,10.88320021,21292.0,21291.0,0.003]
[1674047882351,10.54400033,21292.0,21291.0,0.003]
[1674047882561,10.25167633,21292.0,21291.0,0.003]
[1674047882814,10.55593633,21292.0,21291.0,0.003]
[1674047883364,10.89381911,21292.0,21291.0,0.003]
[1674047884346,10.25167633,21292.0,21291.0,0.003]
[1674047884593,10.59418233,21292.0,21291.0,0.003]
[1674047885601,10.25167633,21292.0,21291.0,0.003]
[1674047885866,10.92003711,21292.0,21291.0,0.003]
[1674047886102,10.58955911,21292.0,21291.0,0.003]
[1674047886369,10.91517111,21292.0,21291.0,0.003]
[1674047886879,10.58955911,21292.0,21291.0,0.003]
[1674047887150,10.90860811,21292.0,21291.0,0.003]
[1674047887378,10.58955911,21292.0,21291.0,0.003]
[1674047887600,10.89942611,21292.0,21291.0,0.003]
[1674047888111,10.91973111,21292.0,21291.0,0.003]
[1674047889123,10.58955911,21292.0,21291.0,0.003]
[1674047889375,10.90854711,21292.0,21291.0,0.003]
[1674047889632,11.38264928,21292.0,21291.0,0.003]
[1674047889887,11.49525639,21292.0,21291.0,0.003]
[1674047890140,11.38264928,21292.0,21291.0,0.003]
[1674047891185,11.85985097,21292.0,21291.0,0.003]
[1674047893442,11.97015097,21292.0,21291.0,0.003]
[1674047895754,13.02238831,21292.0,21291.0,0.003]
[1674047896014,13.08199898,21292.0,21291.0,0.003]
[1674047896270,14.11862114,21292.0,21291.0,0.003]
[1674047896527,14.14464206,21292.0,21291.0,0.003]
[1674047896796,14.14464206,21292.0,21287.0,0.00097903]
[1674047896797,14.33785765,21292.0,21287.0,0.00097903]
[1674047897036,0.2202,21288.0,21287.0,0.00097903]
[1674047897288,0.537915,21288.0,21287.0,0.00097903]
[1674047897566,0.537915,21288.0,21286.0,0.0055545]
[1674047897817,0.51000798,21287.0,21286.0,0.0055545]
[1674047898831,0.51000798,21287.0,21286.0,0.0195545]
[1674047899088,0.51700798,21287.0,21286.0,0.0195545]
[1674047899348,0.85489076,21287.0,21286.0,0.0195545]
[1674047900761,0.85496709,21287.0,21286.0,0.0195545]
[1674047901922,1.02736655,21287.0,21286.0,0.0195545]
[1674047902167,1.49423755,21287.0,21286.0,0.0195545]
[1674047902625,1.32183809,21287.0,21286.0,0.01947448]
[1674047903914,1.21153809,21287.0,21286.0,0.01947448]
[1674047904157,0.87365531,21287.0,21286.0,0.01947448]
[1674047905124,1.21153809,21287.0,21286.0,0.01947448]
[1674047906353,1.80753978,21287.0,21286.0,0.01947448]
[1674047906569,1.90933978,21287.0,21286.0,0.01947448]
[1674047907521,2.20959817,21287.0,21286.0,0.01947448]
[1674047907760,2.09229817,21287.0,21286.0,0.00547448]
[1674047907998,2.09229817,21287.0,21282.0,0.23452907]
[1674047907999,0.00547,21286.0,21282.0,0.00608525]
[1674047908229,1.72886987,21285.0,21282.0,0.00608525]
[1674047908483,0.47720169,21283.0,21281.0,0.00865583]
[1674047908717,1.41947045,21282.0,21281.0,0.0076683]
[1674047908957,1.75007045,21282.0,21281.0,0.0076683]
[1674047909190,0.15,21281.0,21279.0,0.00507764]
[1674047909433,1.34595835,21280.0,21279.0,0.00507764]
[1674047910434,1.50015962,21280.0,21279.0,0.00507764]
[1674047910679,1.996486,21280.0,21279.0,0.00607764]
[1674047911191,1.84213317,21280.0,21279.0,0.00607764]
[1674047911934,1.8422095,21280.0,21279.0,0.00607764]
[1674047912206,1.94386417,21280.0,21279.0,0.00607764]
[1674047912442,2.61546417,21280.0,21279.0,0.00607764]
[1674047912690,2.60696417,21280.0,21279.0,0.00607764]
[1674047912945,2.96960059,21280.0,21279.0,0.00607764]
[1674047913211,3.16882654,21280.0,21279.0,0.00607764]
[1674047913496,3.27810059,21280.0,21279.0,0.00607764]
[1674047914425,2.97810059,21280.0,21279.0,0.00607764]
[1674047914667,2.97810059,21280.0,21279.0,1.00607764]
[1674047915151,3.27380252,21280.0,21279.0,1.00607764]
[1674047915405,3.27270252,21280.0,21279.0,1.00607764]
[1674047915899,3.34076906,21280.0,21279.0,1.00607764]
[1674047917125,4.00256906,21280.0,21279.0,1.00607764]
[1674047917412,2.67813264,21280.0,21279.0,1.00607764]
[1674047917657,2.97813264,21280.0,21279.0,1.00607764]
[1674047917906,2.01813264,21280.0,21279.0,1.00607764]
[1674047918157,1.68043154,21280.0,21279.0,1.00607764]
[1674047919405,2.01831432,21280.0,21279.0,1.00607764]
[1674047920700,1.68043154,21280.0,21279.0,1.00607764]
[1674047920974,1.56993154,21280.0,21279.0,1.00607764]
[1674047921440,1.33975521,21280.0,21279.0,1.00607764]
[1674047921929,1.02865121,21280.0,21279.0,1.00607764]
[1674047922176,1.34651921,21280.0,21279.0,1.00607764]
[1674047922677,1.52427813,21280.0,21279.0,1.00607764]
[1674047923173,2.08236091,21280.0,21279.0,1.00607764]
[1674047923425,1.59887813,21280.0,21279.0,1.00607764]
[1674047923666,1.42718621,21280.0,21279.0,1.00607764]
[1674047924182,1.42726254,21280.0,21279.0,1.00607764]
[1674047926185,1.42726254,21280.0,21279.0,1.02876274]
[1674047926673,2.06514532,21280.0,21279.0,1.02876274]
[1674047927183,2.06514532,21280.0,21279.0,1.00607764]
[1674047927429,2.29416985,21280.0,21279.0,1.00607764]
[1674047928189,2.29416985,21280.0,21279.0,1.02876274]
[1674047928438,2.37756985,21280.0,21279.0,1.02876274]
[1674047934218,1.43598621,21280.0,21279.0,1.0060085]
[1674047936282,1.43598621,21280.0,21279.0,1.02743533]
[1674047936845,1.42748621,21280.0,21279.0,1.02743533]
[1674047937593,1.42756254,21280.0,21279.0,1.02743533]
[1674047938187,1.42748621,21280.0,21279.0,1.02743533]
[1674047938430,1.35258621,21280.0,21279.0,1.02743533]
[1674047938676,1.02865121,21280.0,21279.0,1.02743533]
[1674047939130,0.55520169,21280.0,21279.0,1.02743533]
[1674047939388,0.078,21280.0,21279.0,1.17703533]
[1674047939914,0.078,21280.0,21279.0,1.10253533]
[1674047940426,0.078,21280.0,21279.0,1.02743533]
[1674047940687,0.3890787,21282.0,21279.0,1.02643533]
[1674047941227,0.019,21280.0,21279.0,1.02943533]
[1674047941486,0.72690001,21282.0,21279.0,1.02643533]
[1674047941734,0.071,21280.0,21279.0,1.02843533]
[1674047942000,0.401307,21280.0,21279.0,1.02843533]
[1674047942245,0.326593,21280.0,21279.0,1.02643533]
[1674047942503,0.326593,21280.0,21279.0,1.02843533]
[1674047943259,0.320391,21280.0,21279.0,1.02843533]
[1674047943516,0.81628148,21282.0,21279.0,1.02643533]
[1674047943771,0.083,21280.0,21279.0,1.02643533]
[1674047944028,0.416193,21280.0,21279.0,1.02643533]
[1674047944283,0.391462,21280.0,21279.0,1.02643533]
[1674047944808,0.86010729,21280.0,21279.0,1.02643533]
[1674047946910,1.19799007,21280.0,21279.0,1.02643533]
[1674047947200,1.3515523,21280.0,21279.0,1.02643533]
[1674048010377,2.63196433,21280.0,21279.0,1.02659435]
[1674048010961,2.40685084,21280.0,21279.0,1.02659435]
[1674048011130,2.63196433,21280.0,21279.0,1.02659435]
[1674048013238,2.21890522,21280.0,21279.0,1.02659435]
[1674048013514,2.10637296,21280.0,21279.0,1.02659435]
[1674048013769,2.10637286,21280.0,21279.0,1.02659435]
[1674048014044,2.10637323,21280.0,21279.0,1.02659435]
[1674048014306,2.21890522,21280.0,21279.0,1.02659435]
[1674048014557,2.41566415,21280.0,21279.0,1.02659435]
[1674048014825,2.3879576,21280.0,21279.0,1.02659435]
[1674048015080,2.21895188,21280.0,21279.0,1.02659435]
[1674048016196,1.99383839,21280.0,21279.0,1.02659435]
[1674048016731,2.55683466,21280.0,21279.0,1.02659435]
[1674048016980,2.69713412,21280.0,21279.0,1.02659435]
[1674048018278,2.47202063,21280.0,21279.0,1.02659435]
[1674048018537,2.64257229,21280.0,21279.0,1.02659435]
[1674048018885,2.94287907,21280.0,21279.0,1.02659435]
[1674048019056,2.94287987,21280.0,21279.0,1.02659435]
[1674048019315,2.71767229,21280.0,21279.0,1.02659435]
[1674048019580,3.01767229,21280.0,21279.0,1.02651469]
[1674048019833,3.2429226,21280.0,21279.0,1.02651469]
[1674048020621,3.01767229,21280.0,21279.0,1.02651469]
[1674048020886,2.73627865,21280.0,21279.0,1.02651469]
[1674048021935,2.26572699,21280.0,21279.0,1.02651469]
[1674048022436,2.5473814,21280.0,21279.0,1.02651469]
[1674048023733,2.20942229,21280.0,21279.0,1.02651469]
[1674048024076,2.35970634,21280.0,21279.0,1.02651469]
[1674048024248,2.35970709,21280.0,21279.0,1.02651469]
[1674048024497,2.35978342,21280.0,21279.0,1.02651469]
[1674048025259,2.35978421,21280.0,21279.0,1.02651469]
[1674048025515,2.8616348,21280.0,21279.0,1.02651469]
[1674048025804,2.87998039,21280.0,21279.0,1.02651469]
[1674048026057,2.79698039,21280.0,21279.0,1.02551469]
[1674048026302,2.89498039,21280.0,21279.0,1.02551469]
[1674048026603,2.79698039,21280.0,21279.0,1.02551469]
[1674048026808,2.89498039,21280.0,21279.0,1.02551469]
[1674048027579,2.89491792,21280.0,21279.0,1.02551469]
[1674048027836,2.58068797,21280.0,21279.0,1.02551469]
[1674048029106,2.28068797,21280.0,21279.0,1.02551469]
[1674048029359,2.58068797,21280.0,21279.0,1.02551469]
[1674048030635,2.28068797,21280.0,21279.0,1.02551469]
[1674048031185,2.28061164,21280.0,21279.0,1.02551469]
[1674048031740,2.22452375,21280.0,21279.0,1.02551469]
[1674048032516,2.22452375,21280.0,21279.0,1.00475241]
[1674048033015,2.44995302,21280.0,21279.0,1.00475241]
[1674048033265,2.22452375,21280.0,21279.0,1.00475241]
[1674048034007,2.44997522,21280.0,21279.0,1.00475241]
[1674048034266,2.22452375,21280.0,21279.0,1.00475241]
[1674048034520,2.22460008,21280.0,21279.0,1.00475241]
[1674048035809,2.28068797,21280.0,21279.0,1.00475241]
[1674048036353,2.4157864,21280.0,21279.0,1.00475241]
[1674048036601,2.7157864,21280.0,21279.0,1.00475241]
[1674048037111,2.4157864,21280.0,21279.0,1.00475241]
[1674048037586,2.7157864,21280.0,21279.0,1.00475241]
[1674048037843,2.28068797,21280.0,21279.0,1.00475241]
[1674048038353,2.58068797,21280.0,21279.0,1.00475241]
[1674048038863,2.28068797,21280.0,21279.0,1.00475241]
[1674048039398,2.22464609,21280.0,21279.0,1.00475241]
[1674048039936,2.56252887,21280.0,21279.0,1.00475241]
[1674048040201,2.28068797,21280.0,21279.0,1.00475241]
[1674048040974,2.20558797,21280.0,21279.0,1.00475241]
[1674048041264,3.22462971,21280.0,21279.0,1.00475241]
[1674048044122,2.58048797,21280.0,21279.0,1.00475241]
[1674048044379,2.91830931,21280.0,21279.0,1.00475241]
[1674048044685,2.28041164,21280.0,21279.0,1.00475241]
[1674048045175,2.22431646,21280.0,21279.0,1.00475241]
[1674048045411,2.22431613,21280.0,21279.0,1.00475241]
[1674048047690,2.44974215,21280.0,21279.0,1.00475241]
[1674048048185,2.22439246,21280.0,21279.0,1.00475241]
[1674048048694,1.94260519,21280.0,21279.0,1.00475241]
[1674048048964,2.22439648,21280.0,21279.0,1.00475241]
[1674048049240,2.56227926,21280.0,21279.0,1.00475241]
[1674048049909,2.22439648,21280.0,21279.0,1.00475241]
[1674048050077,2.28048797,21280.0,21279.0,1.00475241]
[1674048050602,1.94260519,21280.0,21279.0,1.00475241]
[1674048050878,2.28048797,21280.0,21279.0,1.0046329]
[1674048052188,2.58048797,21280.0,21279.0,1.0046329]
[1674048052442,2.28048797,21280.0,21279.0,1.0046329]
[1674048052702,1.85912886,21280.0,21279.0,1.0046329]
[1674048052962,2.14092957,21280.0,21279.0,1.0046329]
[1674048053426,1.85912886,21280.0,21279.0,1.0046329]
[1674048054225,2.83557613,21280.0,21279.0,1.0046329]
[1674048054487,3.18189747,21280.0,21279.0,1.0046329]
[1674048054741,2.84407613,21280.0,21279.0,1.0046329]
[1674048055229,2.27991164,21280.0,21279.0,1.0046329]
[1674048055772,2.57991164,21280.0,21279.0,1.0046329]
[1674048056314,2.57998797,21280.0,21279.0,1.0046329]
[1674048057723,2.91780931,21280.0,21279.0,1.0046329]
[1674048061619,2.57998797,21280.0,21279.0,1.0046329]
[1674048061884,2.81351344,21280.0,21279.0,1.0046329]
[1674048062130,2.51351344,21280.0,21279.0,1.0046329]
[1674048062403,1.94211236,21280.0,21279.0,1.0046329]
[1674048062722,2.27999514,21280.0,21279.0,1.0046329]
[1674048062971,2.57999514,21280.0,21279.0,1.0046329]
[1674048063717,2.27999514,21280.0,21279.0,1.0046329]
[1674048065323,2.27999514,21280.0,21279.0,1.00441058]
[1674048067762,2.57999514,21280.0,21279.0,1.00441058]
[1674048068242,2.27999514,21280.0,21279.0,1.00441058]
[1674048068477,2.57999514,21280.0,21279.0,1.00441058]
[1674048068961,2.20559514,21280.0,21279.0,1.00441058]
[1674048069221,2.80440626,21280.0,21279.0,1.00441058]
[1674048069749,3.1422276,21280.0,21279.0,1.00441058]
[1674048070263,3.18461575,21280.0,21279.0,1.00441058]
[1674048070796,3.18461575,21280.0,21279.0,0.92227287]
[1674048071557,3.22392641,21280.0,21279.0,0.92227287]
[1674048073348,2.88580463,21280.0,21279.0,0.92227287]